[Event "36th Indian-ch U13 Girls 2023"]
[Site "Secunderabad"]
[Date "2023.12.10"]
[Round "11.1"]
[White "Shreya G Hipparagi"]
[Black "Kirthika B"]
[Result "1-0"]
[ECO "B92"]
[WhiteElo "1576"]
[BlackElo "1605"]
[Annotator "NA RC"]
[PlyCount "107"]
[EventDate "2023.12.04"]
[EventType "swiss"]
[EventCountry "IND"]
[SourceTitle "playchess.com"]
[Source "ChessBase"]
[SourceQuality "1"]
[TimeControl "5400+30"]

1. e4 {[%emt 0:00:11]} c5 {[%emt 0:00:05]} 2. Nf3 {[%emt 0:00:05]} d6 {[%emt 0:00:05]} 3. d4 {[%emt 0:00:04]} cxd4 {[%emt 0:00:03]} 4. Nxd4 {[%emt 0:00:05]} Nf6 {[%emt 0:00:04]} 5. Nc3 {[%emt 0:00:07]} a6 {[%emt 0:00:02]} 6. Be2 {[%emt 0:00:12]} e5 {[%emt 0:00:06]} 7. Nb3 {[%emt 0:00:04]} Be7 {[%emt 0:00:08]} 8. Be3 {[%emt 0:00:15]} Be6 {[%emt 0:00:17]} 9. O-O {[%emt 0:00:25]} O-O {[%emt 0:00:09]} 10. f3 {[%emt 0:00:33]} d5 {[%emt 0:10:57]} 11. exd5 {[%emt 0:00:41]} Nxd5 {[%emt 0:00:08]} 12. Nxd5 {[%emt 0:00:27]} Bxd5 {[%emt 0:00:54]} 13. c4 {[%emt 0:02:00]} Be6 {[%emt 0:01:15]} 14. Qxd8 {[%emt 0:13:44]} Bxd8 {[%emt 0:05:57]} 15. Rfd1 {[%emt 0:06:18]} Nc6 {[%emt 0:02:22]} 16. Rac1 {[%emt 0:06:17]} Bc7 {[%emt 0:04:52]} 17. Nc5 {[%emt 0:06:02]} Bb6 {[%emt 0:01:57]} 18. Kf2 {[%emt 1:02:00]} Bxc5 {[%emt 0:04:27]} 19. Bxc5 {[%emt 0:00:00]} Rfc8 {[%emt 0:01:02]} 20. b3 {[%emt 0:00:00]} Nb8 {[%emt 0:14:32]} 21. Be3 {[%emt 0:00:00]} Nd7 {[%emt 0:07:19]} 22. Rd6 {[%emt 0:00:00]} Rc6 {[%emt 0:03:07]} 23. Rcd1 {[%emt 0:00:00]} Rxd6 {[%emt 0:01:39]} 24. Rxd6 {[%emt 0:00:00]} Rc8 {[%emt 0:07:51]} 25. a3 {[%emt 0:00:00]} Kf8 {[%emt 0:04:18]} 26. b4 {[%emt 0:00:00]} Ke7 {[%emt 0:00:53]} 27. c5 {[%emt 0:00:00]} f5 {[%emt 0:06:49]} 28. Bg5+ {[%emt 0:00:00]} Nf6 {[%emt 0:00:06]} 29. Bxf6+ {[%emt 0:00:00]} gxf6 {[%emt 0:00:12]} 30. g3 {[%emt 0:00:00]} h6 {[%emt 0:03:15]} 31. Ke3 {[%emt 0:00:00]} Rd8 {[%emt 0:12:00]} 32. Rb6 {[%emt 0:00:00]} Bd5 {[%emt 0:03:03]} 33. Bd3 {[%emt 0:00:00]} Bxf3 {[%emt 0:05:13]} 34. Bxf5 {[%emt 0:00:00]} Bc6 {[%emt 0:00:09]} 35. Be4 {[%emt 0:00:00]} Rc8 {[%emt 0:00:29]} 36. Bxc6 {[%emt 0:00:00]} bxc6 {[%emt 0:00:44]} 37. Rxa6 {[%emt 0:00:00]} Ke6 {[%emt 0:01:34]} 38. Ra7 {[%emt 0:00:00]} Kd5 {[%emt 0:00:19]} 39. Kd3 {[%emt 0:00:00]} Rd8 {[%emt 0:01:00]} 40. Re7 {[%emt 0:00:00]} h5 {[%emt 0:00:32]} 41. a4 {[%emt 0:00:00]} f5 {[%emt 0:00:30]} 42. a5 {[%emt 0:00:00]} f4 {[%emt 0:00:34]} 43. gxf4 {[%emt 0:00:00]} exf4 {[%emt 0:00:03]} 44. a6 {[%emt 0:00:00]} f3 {[%emt 0:00:49]} 45. Ke3 {[%emt 0:00:00]} Kc4 {[%emt 0:00:37]} 46. Rb7 {[%emt 0:00:00]} Rd3+ {[%emt 0:00:11]} 47. Kf2 {[%emt 0:00:00]} Ra3 {[%emt 0:00:10]} 48. a7 {[%emt 0:00:00]} h4 {[%emt 0:01:02]} 49. b5 {[%emt 0:00:00]} Kxc5 {[%emt 0:00:25]} 50. b6 {[%emt 0:00:00]} Kb5 {[%emt 0:00:43]} 51. Rb8 {[%emt 0:00:00]} c5 {[%emt 0:00:12]} 52. a8=Q {[%emt 0:00:00]} Rxa8 {[%emt 0:00:05]} 53. Rxa8 {[%emt 0:00:00]} Kxb6 {[%emt 0:00:04]} 54. Kxf3 {[%emt 0:00:00]} 1-0

[Event "36th Indian-ch U13 Girls 2023"]
[Site "Secunderabad"]
[Date "2023.12.10"]
[Round "11.2"]
[White "Shanmathi Sree S"]
[Black "Akshaya Sathi"]
[Result "1-0"]
[ECO "B90"]
[WhiteElo "1420"]
[BlackElo "1542"]
[Annotator "NA RC"]
[PlyCount "85"]
[EventDate "2023.12.04"]
[EventType "swiss"]
[EventCountry "IND"]
[SourceTitle "playchess.com"]
[Source "ChessBase"]
[SourceQuality "1"]
[TimeControl "5400+30"]

1. e4 {[%emt 0:01:17]} c5 {[%emt 0:00:50]} 2. Nf3 {[%emt 0:00:23]} d6 {[%emt 0:00:19]} 3. d4 {[%emt 0:00:23]} cxd4 {[%emt 0:00:12]} 4. Nxd4 {[%emt 0:00:52]} Nf6 {[%emt 0:00:10]} 5. Nc3 {[%emt 0:00:33]} a6 {[%emt 0:00:12]} 6. Be3 {[%emt 0:00:34]} e5 {[%emt 0:00:27]} 7. Nb3 {[%emt 0:00:38]} Be7 {[%emt 0:00:33]} 8. f3 {[%emt 0:00:16]} Be6 {[%emt 0:00:23]} 9. Qd2 {[%emt 0:01:37]} h5 {[%emt 0:00:55]} 10. O-O-O {[%emt 0:02:23]} Nbd7 {[%emt 0:02:08]} 11. Rg1 {[%emt 0:04:28]} Rc8 {[%emt 0:03:45]} 12. Qf2 {[%emt 0:14:28]} b5 {[%emt 0:07:14]} 13. Nd5 {[%emt 0:04:33]} Nxd5 {[%emt 0:07:04]} 14. exd5 {[%emt 0:03:02]} Bf5 {[%emt 0:00:22]} 15. Bd3 {[%emt 0:00:50]} Bxd3 {[%emt 0:04:06]} 16. Rxd3 {[%emt 0:00:10]} Bg5 {[%emt 0:16:14]} 17. Bxg5 {[%emt 0:02:51]} Qxg5+ {[%emt 0:00:04]} 18. Kb1 {[%emt 0:00:32]} O-O {[%emt 0:09:53]} 19. g4 {[%emt 0:03:18]} h4 {[%emt 0:00:52]} 20. Nd2 {[%emt 0:01:33]} Nc5 {[%emt 0:02:45]} 21. Re3 {[%emt 0:06:08]} Rc7 {[%emt 0:06:06]} 22. Ne4 {[%emt 0:02:42]} Nxe4 {[%emt 0:03:50]} 23. fxe4 {[%emt 0:07:36]} Rfc8 {[%emt 0:00:43]} 24. Re2 {[%emt 0:00:41]} Rc4 {[%emt 0:07:07]} 25. b3 {[%emt 0:02:41]} Rd4 {[%emt 0:09:15]} 26. Qf5 {[%emt 0:03:20]} Qd8 {[%emt 0:02:53]} 27. g5 {[%emt 0:03:07]} g6 {[%emt 0:03:06]} 28. Qh3 {[%emt 0:01:52]} Kg7 {[%emt 0:00:23]} 29. c3 {[%emt 0:01:34]} Qb6 {[%emt 0:03:53]} 30. Qxc8 {[%emt 0:06:54]} Rxe4 {[%emt 0:02:47]} 31. Rge1 {[%emt 0:01:35]} Rf4 {[%emt 0:01:28]} 32. Qc6 {[%emt 0:01:01]} Qd8 {[%emt 0:01:05]} 33. Qxa6 {[%emt 0:01:53]} b4 {[%emt 0:00:37]} 34. cxb4 {[%emt 0:01:56]} Rxb4 {[%emt 0:00:01]} 35. Kb2 {[%emt 0:01:56]} Rd4 {[%emt 0:00:46]} 36. Qc6 {[%emt 0:01:51]} Qa5 {[%emt 0:01:05]} 37. Rc1 {[%emt 0:03:38]} Rxd5 {[%emt 0:00:45]} 38. Rcc2 {[%emt 0:00:59]} Rd4 {[%emt 0:01:22]} 39. Qc7 {[%emt 0:00:40]} Qd5 {[%emt 0:01:01]} 40. Rf2 {[%emt 0:01:24]} Rd1 {[%emt 0:03:12]} 41. Qc4 {[%emt 0:00:47]} Qb7 {[%emt 0:00:21]} 42. Qxh4 {[%emt 0:01:31]} e4 {[%emt 0:00:37]} 43. Qf4 {[%emt 0:01:39]} 1-0

[Event "36th Indian-ch U13 Girls 2023"]
[Site "Secunderabad"]
[Date "2023.12.10"]
[Round "11.3"]
[White "Vaishnavi S K"]
[Black "Kalyani Sirin"]
[Result "0-1"]
[ECO "C54"]
[WhiteElo "1417"]
[BlackElo "1802"]
[Annotator "NA RC"]
[PlyCount "66"]
[EventDate "2023.12.04"]
[EventType "swiss"]
[EventCountry "IND"]
[SourceTitle "playchess.com"]
[Source "ChessBase"]
[SourceQuality "1"]
[TimeControl "5400+30"]

1. e4 {[%emt 0:00:35]} e5 {[%emt 0:00:10]} 2. Nf3 {[%emt 0:00:16]} Nc6 {[%emt 0:00:08]} 3. Bc4 {[%emt 0:00:16]} Bc5 {[%emt 0:00:08]} 4. c3 {[%emt 0:00:04]} Nf6 {[%emt 0:00:10]} 5. d4 {[%emt 0:00:19]} exd4 {[%emt 0:00:08]} 6. cxd4 {[%emt 0:00:06]} Bb4+ {[%emt 0:00:06]} 7. Bd2 {[%emt 0:00:06]} Bxd2+ {[%emt 0:00:06]} 8. Nbxd2 {[%emt 0:00:06]} d5 {[%emt 0:00:09]} 9. exd5 {[%emt 0:00:05]} Nxd5 {[%emt 0:00:08]} 10. O-O {[%emt 0:00:10]} O-O {[%emt 1:34:17]} 11. Rc1 {[%emt 0:00:11]} Re8 {[%emt 0:00:00]} 12. Bb3 {[%emt 0:01:49]} Nf4 {[%emt 0:00:00]} 13. Kh1 {[%emt 0:30:06]} Bg4 {[%emt 0:00:00]} 14. Qc2 {[%emt 0:38:57]} Qf6 {[%emt 0:00:00]} 15. Ba4 {[%emt 0:12:13]} Re6 {[%emt 0:00:00]} 16. Ne5 {[%emt 0:03:08]} Nxe5 {[%emt 0:00:00]} 17. dxe5 {[%emt 0:01:02]} Rxe5 {[%emt 0:00:00]} 18. Ne4 {[%emt 0:05:23]} Qg6 {[%emt 0:00:00]} 19. f3 {[%emt 0:00:21]} Bf5 {[%emt 0:00:00]} 20. Qd2 {[%emt 0:01:21]} Ne6 {[%emt 0:00:00]} 21. Ng3 {[%emt 0:00:51]} Rd8 {[%emt 0:00:00]} 22. Qb4 {[%emt 0:00:55]} Rd4 {[%emt 0:00:00]} 23. Qxb7 {[%emt 0:01:55]} Rxa4 {[%emt 0:00:00]} 24. Qc6 {[%emt 0:00:52]} Rea5 {[%emt 0:00:00]} 25. Qe8+ {[%emt 0:00:56]} Nf8 {[%emt 0:00:00]} 26. Rcd1 {[%emt 0:00:09]} f6 {[%emt 0:00:00]} 27. Qb8 {[%emt 0:00:52]} Be6 {[%emt 0:00:00]} 28. Rd8 {[%emt 0:00:51]} Qf7 {[%emt 0:00:00]} 29. Re1 {[%emt 0:00:23]} Rxa2 {[%emt 0:00:00]} 30. h3 {[%emt 0:00:15]} Ra1 {[%emt 0:00:00]} 31. Rxa1 {[%emt 0:00:11]} Rxa1+ {[%emt 0:00:00]} 32. Kh2 {[%emt 0:00:02]} Qe7 {[%emt 0:00:00]} 33. Ne4 {[%emt 0:00:29]} Kf7 {[%emt 0:00:00]} 0-1

[Event "36th Indian-ch U13 Girls 2023"]
[Site "Secunderabad"]
[Date "2023.12.10"]
[Round "11.4"]
[White "Arshiya Das"]
[Black "Aamuktha Guntaka"]
[Result "1-0"]
[ECO "A07"]
[WhiteElo "1729"]
[BlackElo "1532"]
[Annotator "NA RC"]
[PlyCount "93"]
[EventDate "2023.12.04"]
[EventType "swiss"]
[EventCountry "IND"]
[SourceTitle "playchess.com"]
[Source "ChessBase"]
[SourceQuality "1"]
[TimeControl "5400+30"]

1. Nf3 {[%emt 0:00:04]} d5 {[%emt 0:00:49]} 2. g3 {[%emt 0:00:03]} Nd7 {[%emt 0:00:06]} 3. Bg2 {[%emt 0:00:09]} e5 {[%emt 0:00:22]} 4. d3 {[%emt 0:00:09]} Ngf6 {[%emt 0:00:08]} 5. O-O {[%emt 0:00:25]} Bc5 {[%emt 0:00:26]} 6. Nxe5 {[%emt 0:02:24]} Bxf2+ {[%emt 0:11:27]} 7. Rxf2 {[%emt 0:00:13]} Nxe5 {[%emt 1:20:42]} 8. Rf1 {[%emt 0:06:41]} h6 {[%emt 0:00:00]} 9. Kh1 {[%emt 0:06:06]} O-O {[%emt 0:00:00]} 10. d4 {[%emt 0:06:45]} Ng6 {[%emt 0:00:00]} 11. Nc3 {[%emt 0:01:15]} c6 {[%emt 0:00:00]} 12. Qe1 {[%emt 0:01:09]} Qe7 {[%emt 0:00:00]} 13. h3 {[%emt 0:01:50]} Bd7 {[%emt 0:00:00]} 14. Qf2 {[%emt 0:02:00]} Kh7 {[%emt 0:00:00]} 15. Bd2 {[%emt 0:04:25]} Rae8 {[%emt 0:00:00]} 16. Rae1 {[%emt 0:01:16]} Qd6 {[%emt 0:00:00]} 17. Kh2 {[%emt 0:01:30]} Ne4 {[%emt 0:00:00]} 18. Nxe4 {[%emt 0:02:10]} dxe4 {[%emt 0:00:00]} 19. a3 {[%emt 0:01:01]} c5 {[%emt 0:00:00]} 20. Be3 {[%emt 0:05:06]} cxd4 {[%emt 0:00:00]} 21. Bxd4 {[%emt 0:00:04]} b6 {[%emt 0:00:00]} 22. Bc3 {[%emt 0:01:20]} a5 {[%emt 0:00:00]} 23. Rd1 {[%emt 0:00:08]} Qc7 {[%emt 0:00:00]} 24. Qd4 {[%emt 0:04:55]} Ne5 {[%emt 0:08:30]} 25. Qxe4+ {[%emt 0:00:53]} Ng6 {[%emt 0:00:00]} 26. Qd4 {[%emt 0:01:50]} Ne5 {[%emt 0:01:00]} 27. Qf4 {[%emt 0:06:01]} f6 {[%emt 0:00:00]} 28. Be4+ {[%emt 0:03:20]} Kg8 {[%emt 0:00:00]} 29. Bd5+ {[%emt 0:04:59]} Kh7 {[%emt 0:00:00]} 30. Be4+ {[%emt 0:00:42]} Kg8 {[%emt 0:00:00]} 31. Bg6 {[%emt 0:01:54]} Re7 {[%emt 0:00:00]} 32. Rd5 {[%emt 0:01:17]} Rc8 {[%emt 0:01:50]} 33. Bxe5 {[%emt 0:01:32]} fxe5 {[%emt 0:00:26]} 34. Qd2 {[%emt 0:01:27]} Be8 {[%emt 0:01:05]} 35. Bf5 {[%emt 0:00:59]} Rb8 {[%emt 0:00:24]} 36. Rd1 {[%emt 0:01:29]} Bc6 {[%emt 0:00:33]} 37. Rd8+ {[%emt 0:00:52]} Re8 {[%emt 0:00:32]} 38. Rxb8 {[%emt 0:01:15]} Qxb8 {[%emt 0:00:30]} 39. Qd6 {[%emt 0:00:41]} Qb7 {[%emt 0:00:27]} 40. Qg6 {[%emt 0:02:13]} Rf8 {[%emt 0:00:35]} 41. Qh7+ {[%emt 0:00:44]} Kf7 {[%emt 0:00:11]} 42. Bg6+ {[%emt 0:00:04]} Ke6 {[%emt 0:00:40]} 43. e4 {[%emt 0:02:35]} Be8 {[%emt 0:00:40]} 44. Bxe8 {[%emt 0:00:39]} Qa6 {[%emt 0:00:34]} 45. Qg6+ {[%emt 0:00:56]} Rf6 {[%emt 0:00:10]} 46. Bd7+ {[%emt 0:00:16]} Ke7 {[%emt 0:00:15]} 47. Qe8# {[%emt 0:00:04]} 1-0

[Event "36th Indian-ch U13 Girls 2023"]
[Site "Secunderabad"]
[Date "2023.12.10"]
[Round "11.5"]
[White "Nihira Koul"]
[Black "Gorli Nyna"]
[Result "1/2-1/2"]
[ECO "A26"]
[WhiteElo "1484"]
[BlackElo "1652"]
[Annotator "NA RC"]
[PlyCount "168"]
[EventDate "2023.12.04"]
[EventType "swiss"]
[EventCountry "IND"]
[SourceTitle "playchess.com"]
[Source "ChessBase"]
[SourceQuality "1"]
[TimeControl "5400+30"]

1. c4 {[%emt 0:00:18]} Nf6 {[%emt 0:00:09]} 2. g3 {[%emt 0:00:14]} g6 {[%emt 0:00:13]} 3. Nc3 {[%emt 0:00:22]} Bg7 {[%emt 0:00:06]} 4. Bg2 {[%emt 0:00:06]} d6 {[%emt 0:00:04]} 5. e4 {[%emt 0:01:04]} O-O {[%emt 0:00:57]} 6. Nge2 {[%emt 0:01:33]} e5 {[%emt 0:00:20]} 7. O-O {[%emt 0:00:37]} Be6 {[%emt 0:01:42]} 8. d3 {[%emt 0:00:54]} Nc6 {[%emt 0:00:29]} 9. Nd5 {[%emt 0:08:34]} Nd7 {[%emt 0:06:03]} 10. Be3 {[%emt 0:08:12]} Re8 {[%emt 0:07:49]} 11. Qd2 {[%emt 0:02:05]} Nd4 {[%emt 0:05:52]} 12. Ndc3 {[%emt 0:16:54]} c6 {[%emt 0:23:25]} 13. b4 {[%emt 0:05:16]} f5 {[%emt 0:02:55]} 14. Rab1 {[%emt 0:03:47]} fxe4 {[%emt 0:06:51]} 15. Nxe4 {[%emt 0:01:11]} Nf5 {[%emt 0:08:59]} 16. Bg5 {[%emt 0:18:35]} Qc7 {[%emt 0:01:10]} 17. g4 {[%emt 0:03:17]} Nd4 {[%emt 0:01:29]} 18. h3 {[%emt 0:05:59]} Nxe2+ {[%emt 0:04:18]} 19. Qxe2 {[%emt 0:00:09]} d5 {[%emt 0:00:06]} 20. Nc3 {[%emt 0:07:23]} Nb6 {[%emt 0:14:26]} 21. c5 {[%emt 0:02:48]} Nd7 {[%emt 0:00:55]} 22. Qd2 {[%emt 0:00:41]} a5 {[%emt 0:02:59]} 23. a3 {[%emt 0:08:27]} axb4 {[%emt 0:00:58]} 24. axb4 {[%emt 0:00:04]} d4 {[%emt 0:06:22]} 25. Ne4 {[%emt 0:00:17]} Ra2 {[%emt 0:00:02]} 26. Rb2 {[%emt 0:00:24]} Rea8 {[%emt 0:00:04]} 27. Rfb1 {[%emt 0:00:29]} Qb8 {[%emt 0:01:11]} 28. Be7 {[%emt 0:00:47]} Rxb2 {[%emt 0:01:10]} 29. Rxb2 {[%emt 0:00:12]} Ra1+ {[%emt 0:00:27]} 30. Kh2 {[%emt 0:00:23]} h6 {[%emt 0:00:09]} 31. g5 {[%emt 0:00:48]} h5 {[%emt 0:00:12]} 32. Nf6+ {[%emt 0:01:27]} Nxf6 {[%emt 0:00:11]} 33. gxf6 {[%emt 0:00:05]} Bxf6 {[%emt 0:00:37]} 34. Bd6 {[%emt 0:00:30]} Qe8 {[%emt 0:00:05]} 35. Be4 {[%emt 0:00:19]} Kg7 {[%emt 0:00:59]} 36. f4 {[%emt 0:01:23]} Bf7 {[%emt 0:01:53]} 37. f5 {[%emt 0:02:34]} g5 {[%emt 0:00:19]} 38. b5 {[%emt 0:00:05]} Bd5 {[%emt 0:01:54]} 39. Qg2 {[%emt 0:01:05]} Bxe4 {[%emt 0:01:32]} 40. Qxe4 {[%emt 0:00:03]} Ra7 {[%emt 0:00:30]} 41. bxc6 {[%emt 0:00:36]} bxc6 {[%emt 0:00:01]} 42. Rb8 {[%emt 0:00:09]} Ra2+ {[%emt 0:00:38]} 43. Kg3 {[%emt 0:01:15]} h4+ {[%emt 0:00:52]} 44. Kg4 {[%emt 0:00:32]} Qd7 {[%emt 0:00:28]} 45. Bxe5 {[%emt 0:00:20]} Rf2 {[%emt 0:00:06]} 46. Bxf6+ {[%emt 0:00:08]} Kxf6 {[%emt 0:00:03]} 47. Qe6+ {[%emt 0:00:48]} Qxe6 {[%emt 0:00:05]} 48. fxe6 {[%emt 0:00:04]} Rg2+ {[%emt 0:00:33]} 49. Kh5 {[%emt 0:00:41]} Kxe6 {[%emt 0:00:09]} 50. Rd8 {[%emt 0:00:08]} Rg3 {[%emt 0:01:36]} 51. Rxd4 {[%emt 0:00:43]} Kf5 {[%emt 0:00:05]} 52. Rd8 {[%emt 0:00:24]} Rxh3 {[%emt 0:01:09]} 53. Rf8+ {[%emt 0:00:57]} Ke5 {[%emt 0:00:20]} 54. Kxg5 {[%emt 0:00:41]} Rxd3 {[%emt 0:00:22]} 55. Rf5+ {[%emt 0:00:38]} Ke6 {[%emt 0:00:34]} 56. Rf6+ {[%emt 0:00:07]} Kd7 {[%emt 0:00:44]} 57. Rf7+ {[%emt 0:00:44]} Ke8 {[%emt 0:00:37]} 58. Rc7 {[%emt 0:00:27]} Rd5+ {[%emt 0:00:03]} 59. Kxh4 {[%emt 0:00:05]} Rxc5 {[%emt 0:00:02]} 60. Kg4 {[%emt 0:00:10]} Kd8 {[%emt 0:00:05]} 61. Rf7 {[%emt 0:00:03]} Rd5 {[%emt 0:00:28]} 62. Kf4 {[%emt 0:00:06]} c5 {[%emt 0:00:30]} 63. Rf5 {[%emt 0:01:20]} Rxf5+ {[%emt 0:01:56]} 64. Kxf5 {[%emt 0:00:01]} Kc7 {[%emt 0:00:01]} 65. Ke4 {[%emt 0:00:09]} Kb6 {[%emt 0:00:26]} 66. Kd3 {[%emt 0:00:04]} Kb5 {[%emt 0:00:07]} 67. Kc3 {[%emt 0:00:03]} c4 {[%emt 0:00:05]} 68. Kc2 {[%emt 0:00:04]} Kc6 {[%emt 0:00:12]} 69. Kc3 {[%emt 0:00:06]} Kd5 {[%emt 0:00:06]} 70. Kc2 {[%emt 0:00:04]} Kd4 {[%emt 0:00:13]} 71. Kd2 {[%emt 0:00:04]} c3+ {[%emt 0:00:11]} 72. Kc2 {[%emt 0:00:03]} Kc4 {[%emt 0:00:05]} 73. Kc1 {[%emt 0:00:04]} Kb5 {[%emt 0:00:08]} 74. Kc2 {[%emt 0:00:10]} Kb4 {[%emt 0:00:03]} 75. Kc1 {[%emt 0:00:06]} Kc4 {[%emt 0:00:05]} 76. Kc2 {[%emt 0:00:03]} Kd4 {[%emt 0:00:04]} 77. Kc1 {[%emt 0:00:06]} Kd3 {[%emt 0:00:02]} 78. Kd1 {[%emt 0:00:07]} Kc4 {[%emt 0:00:04]} 79. Kc2 {[%emt 0:00:04]} Kb4 {[%emt 0:00:03]} 80. Kc1 {[%emt 0:00:04]} Kc5 {[%emt 0:00:01]} 81. Kc2 {[%emt 0:00:07]} Kc4 {[%emt 0:00:02]} 82. Kc1 {[%emt 0:00:06]} Kb3 {[%emt 0:00:03]} 83. Kb1 {[%emt 0:00:03]} c2+ {[%emt 0:00:06]} 84. Kc1 {[%emt 0:00:03]} Kc3 {[%emt 0:00:04]} 1/2-1/2

[Event "36th Indian-ch U13 Girls 2023"]
[Site "Secunderabad"]
[Date "2023.12.10"]
[Round "11.6"]
[White "Nivedita V C"]
[Black "Aadya Gupta"]
[Result "1-0"]
[ECO "D60"]
[WhiteElo "1638"]
[BlackElo "1460"]
[Annotator "NA RC"]
[PlyCount "75"]
[EventDate "2023.12.04"]
[EventType "swiss"]
[EventCountry "IND"]
[SourceTitle "playchess.com"]
[Source "ChessBase"]
[SourceQuality "1"]
[TimeControl "5400+30"]

1. d4 {[%emt 0:00:04]} d5 {[%emt 0:00:01]} 2. c4 {[%emt 0:00:09]} c6 {[%emt 0:00:04]} 3. Nc3 {[%emt 0:00:04]} Nf6 {[%emt 0:00:05]} 4. Bg5 {[%emt 0:02:56]} e6 {[%emt 0:07:50]} 5. e3 {[%emt 0:00:11]} Be7 {[%emt 0:00:29]} 6. Nf3 {[%emt 0:00:26]} O-O {[%emt 0:00:43]} 7. Bd3 {[%emt 0:01:22]} Nbd7 {[%emt 0:01:08]} 8. O-O {[%emt 0:00:34]} h6 {[%emt 0:00:57]} 9. Bh4 {[%emt 0:01:53]} a6 {[%emt 0:02:55]} 10. c5 {[%emt 0:00:53]} e5 {[%emt 0:05:38]} 11. dxe5 {[%emt 0:06:50]} Nh5 {[%emt 0:04:37]} 12. Bxe7 {[%emt 0:01:06]} Qxe7 {[%emt 0:00:45]} 13. g4 {[%emt 0:01:03]} Nxe5 {[%emt 0:13:27]} 14. Nxe5 {[%emt 0:01:07]} Qxe5 {[%emt 0:00:02]} 15. gxh5 {[%emt 0:00:19]} Bh3 {[%emt 0:00:59]} 16. f4 {[%emt 0:01:51]} Qxe3+ {[%emt 0:00:35]} 17. Rf2 {[%emt 0:00:01]} d4 {[%emt 0:06:44]} 18. Ne4 {[%emt 0:02:27]} f5 {[%emt 0:09:17]} 19. Nd6 {[%emt 0:01:44]} Bg4 {[%emt 0:05:44]} 20. Qd2 {[%emt 0:00:09]} Qh3 {[%emt 0:02:56]} 21. Bc4+ {[%emt 0:01:18]} Kh7 {[%emt 0:02:30]} 22. Qxd4 {[%emt 0:00:24]} Qxh5 {[%emt 0:03:49]} 23. Re1 {[%emt 0:02:19]} Qh4 {[%emt 0:07:37]} 24. Qe3 {[%emt 0:01:38]} Qf6 {[%emt 0:08:25]} 25. Qe7 {[%emt 0:02:13]} Qd4 {[%emt 0:02:45]} 26. Qe5 {[%emt 0:00:15]} Qxe5 {[%emt 0:04:06]} 27. fxe5 {[%emt 0:00:26]} f4 {[%emt 0:03:38]} 28. e6 {[%emt 0:00:06]} Bh5 {[%emt 0:00:10]} 29. e7 {[%emt 0:00:07]} Rh8 {[%emt 0:01:00]} 30. Rxf4 {[%emt 0:00:07]} g5 {[%emt 0:00:43]} 31. Rfe4 {[%emt 0:00:07]} Bg6 {[%emt 0:00:09]} 32. e8=Q {[%emt 0:00:19]} Bxe8 {[%emt 0:00:25]} 33. Nxe8 {[%emt 0:00:06]} Kg6 {[%emt 0:01:03]} 34. Re6+ {[%emt 0:00:13]} Kh7 {[%emt 0:00:23]} 35. Bd3+ {[%emt 0:00:09]} Kg8 {[%emt 0:00:08]} 36. Rg6+ {[%emt 0:00:06]} Kf7 {[%emt 0:00:09]} 37. Rf6+ {[%emt 0:00:26]} Kg8 {[%emt 0:00:06]} 38. Re7 {[%emt 0:00:07]} 1-0

[Event "36th Indian-ch U13 Girls 2023"]
[Site "Secunderabad"]
[Date "2023.12.10"]
[Round "11.7"]
[White "Saparya Ghosh"]
[Black "Singh Myra"]
[Result "1-0"]
[ECO "D35"]
[WhiteElo "1662"]
[BlackElo "1454"]
[Annotator "NA RC"]
[PlyCount "81"]
[EventDate "2023.12.04"]
[EventType "swiss"]
[EventCountry "IND"]
[SourceTitle "playchess.com"]
[Source "ChessBase"]
[SourceQuality "1"]
[TimeControl "5400+30"]

1. d4 {[%emt 0:00:03]} d5 {[%emt 0:00:02]} 2. c4 {[%emt 0:00:10]} e6 {[%emt 0:00:04]} 3. Nc3 {[%emt 0:00:07]} Nf6 {[%emt 0:00:05]} 4. cxd5 {[%emt 0:00:07]} exd5 {[%emt 0:00:06]} 5. Bg5 {[%emt 0:00:09]} Be7 {[%emt 0:00:04]} 6. e3 {[%emt 0:00:09]} c6 {[%emt 0:00:05]} 7. Bd3 {[%emt 0:00:08]} h6 {[%emt 0:00:05]} 8. Bh4 {[%emt 0:00:07]} O-O {[%emt 0:00:06]} 9. Nge2 {[%emt 0:00:16]} Nbd7 {[%emt 0:00:07]} 10. f3 {[%emt 0:01:42]} Re8 {[%emt 0:00:32]} 11. O-O {[%emt 0:00:30]} Nb6 {[%emt 0:11:59]} 12. Bf2 {[%emt 0:01:33]} Be6 {[%emt 0:05:10]} 13. Nf4 {[%emt 0:08:43]} Bd6 {[%emt 0:03:24]} 14. Nxe6 {[%emt 0:03:08]} fxe6 {[%emt 0:00:21]} 15. Bg6 {[%emt 0:11:00]} Rf8 {[%emt 0:00:31]} 16. f4 {[%emt 0:08:15]} Qe7 {[%emt 0:08:51]} 17. Bh4 {[%emt 0:01:13]} Qd7 {[%emt 0:07:59]} 18. g4 {[%emt 0:04:47]} Nc4 {[%emt 0:02:35]} 19. Re1 {[%emt 0:15:21]} Nxb2 {[%emt 0:15:28]} 20. Qe2 {[%emt 0:01:36]} Nc4 {[%emt 0:00:52]} 21. g5 {[%emt 0:00:26]} Nh7 {[%emt 0:01:43]} 22. Qc2 {[%emt 0:05:35]} Nxg5 {[%emt 0:02:28]} 23. fxg5 {[%emt 0:00:19]} hxg5 {[%emt 0:00:28]} 24. Bxg5 {[%emt 0:01:57]} e5 {[%emt 0:03:21]} 25. Qg2 {[%emt 0:02:18]} Qe6 {[%emt 0:05:33]} 26. Bd3 {[%emt 0:10:50]} Bb4 {[%emt 0:31:31]} 27. Rac1 {[%emt 0:03:54]} Bxc3 {[%emt 0:00:00]} 28. Rxc3 {[%emt 0:00:50]} exd4 {[%emt 0:00:00]} 29. Rc2 {[%emt 0:03:56]} Nxe3 {[%emt 0:00:00]} 30. Qg3 {[%emt 0:00:29]} Rfe8 {[%emt 0:00:00]} 31. Rg2 {[%emt 0:05:25]} Qf7 {[%emt 0:00:00]} 32. Qh3 {[%emt 0:01:40]} Nf5 {[%emt 0:00:00]} 33. Rf1 {[%emt 0:00:31]} g6 {[%emt 0:01:49]} 34. Bxf5 {[%emt 0:00:09]} Qh7 {[%emt 0:00:54]} 35. Bh6 {[%emt 0:00:41]} Re3 {[%emt 0:00:19]} 36. Bxe3 {[%emt 0:00:46]} Qxh3 {[%emt 0:00:05]} 37. Bxh3 {[%emt 0:00:05]} dxe3 {[%emt 0:00:06]} 38. Rxg6+ {[%emt 0:00:05]} Kh7 {[%emt 0:00:11]} 39. Bf5 {[%emt 0:02:05]} Kh8 {[%emt 0:00:06]} 40. Rf3 {[%emt 0:00:11]} e2 {[%emt 0:00:21]} 41. Rh3# {[%emt 0:00:03]} 1-0